bitfinex/quotes_SOLUSD_20250529
["timestamp","ask_amount","ask_price","bid_price","bid_amount"]
[1748532071149,147.3,170.56,170.53,20.98995552]
[1748532071346,147.3,170.56,170.52,20.98995552]
[1748532071554,147.3,170.56,170.53,20.98995552]
[1748532071741,147.3,170.56,170.54,20.98995552]
[1748532072330,147.3,170.56,170.55,20.98995552]
[1748532073762,37.02,170.6,170.55,20.98995552]
[1748532073963,37.02,170.6,170.58,20.98995552]
[1748532074566,178.30995552,170.62,170.57,20.98995552]
[1748532074763,37.0,170.61,170.57,20.98995552]
[1748532075141,157.32,170.62,170.52,26.0]
[1748532075338,20.98995552,170.58,170.49,10.02]
[1748532075650,20.98995552,170.56,170.51,20.98995552]
[1748532077865,37.0,170.57,170.53,20.98995552]
[1748532078436,57.98995552,170.57,170.53,20.98995552]
[1748532078660,20.98995552,170.58,170.54,20.98995552]
[1748532078865,36.98,170.59,170.55,20.98995552]
[1748532079071,83.96995552,170.6,170.55,20.98995552]
[1748532079557,183.32,170.62,170.56,20.98995552]
[1748532079869,204.30995552,170.62,170.57,20.98995552]
[1748532080055,178.30995552,170.62,170.58,20.98995552]
[1748532080544,157.32,170.62,170.58,20.98995552]
[1748532080949,178.30995552,170.62,170.58,20.98995552]
[1748532081459,157.32,170.62,170.59,20.98995552]
[1748532082353,157.32,170.62,170.58,20.98995552]
[1748532082860,157.32,170.62,170.59,20.98995552]
[1748532083360,167.33897864,170.66,170.61,20.98995552]
[1748532083591,188.32893416,170.66,170.61,20.98995552]
[1748532083765,20.98995552,170.65,170.6,20.98995552]
[1748532084156,147.3,170.66,170.62,20.98995552]
[1748532086467,147.3,170.66,170.63,20.98995552]
[1748532086856,93.96995552,170.67,170.65,20.98995552]
[1748532086857,10.0,170.67,170.65,20.98995552]
[1748532087056,57.94995552,170.7,170.66,20.98995552]
[1748532087366,20.98995552,170.69,170.65,20.98995552]
[1748532088576,20.98995552,170.68,170.63,20.98995552]
[1748532088867,20.98995552,170.68,170.59,1.6546]
[1748532088868,20.98995552,170.68,170.64,20.98995552]
[1748532090277,36.96,170.7,170.65,20.98995552]
[1748532090490,57.92995552,170.7,170.66,20.98995552]
[1748532090790,20.98995552,170.7,170.66,20.98995552]
[1748532091595,224.10274263,170.71,170.67,20.98995552]
[1748532091596,147.3,170.71,170.67,20.98995552]
[1748532091884,168.28995552,170.71,170.66,20.98995552]
[1748532093255,168.28995552,170.71,170.61,26.0]
[1748532093473,168.28995552,170.71,170.66,20.98995552]
[1748532094158,168.28995552,170.71,170.62,5.86085445]
[1748532094353,168.28995552,170.71,170.67,20.98995552]
[1748532094555,174.14785485,170.71,170.66,20.98995552]
[1748532094870,20.98995552,170.7,170.65,20.98995552]
[1748532095766,26.84823827,170.7,170.65,20.98995552]
[1748532096351,20.98995552,170.69,170.64,20.98995552]
[1748532096554,20.98995552,170.68,170.63,20.98995552]
[1748532097377,20.98995552,170.64,170.59,20.98995552]
[1748532097679,20.98995552,170.63,170.58,20.98995552]
[1748532099177,20.98995552,170.62,170.57,20.98995552]
[1748532099354,26.85059634,170.63,170.58,20.98995552]
[1748532099546,20.98995552,170.63,170.58,20.98995552]
[1748532101155,147.3,170.65,170.61,20.98995552]
[1748532101777,168.28995552,170.65,170.6,20.98995552]
[1748532102477,174.14996031,170.65,170.6,20.98995552]
[1748532102666,20.98995552,170.64,170.59,20.98995552]
[1748532104754,153.16000479,170.65,170.55,28.41383641]
[1748532105056,20.98995552,170.64,170.6,20.98995552]
[1748532105466,20.98995552,170.63,170.58,20.98995552]
[1748532105959,20.98995552,170.63,170.59,20.98995552]
[1748532107162,20.98995552,170.63,170.55,1.5605]
[1748532107363,20.98995552,170.62,170.55,1.5605]
[1748532107563,20.98995552,170.62,170.57,20.98995552]
[1748532108984,20.98995552,170.62,170.58,20.98995552]
[1748532109291,20.98995552,170.63,170.59,20.98995552]
[1748532110076,20.98995552,170.63,170.55,1.5605]
[1748532110380,20.98995552,170.63,170.59,20.98995552]
[1748532110978,205.34995552,170.65,170.6,20.98995552]
[1748532111181,168.28995552,170.65,170.61,20.98995552]
[1748532111385,9.9,170.66,170.62,20.98995552]
[1748532111565,20.98995552,170.66,170.62,20.98995552]
[1748532112066,147.3,170.69,170.65,20.98995552]
[1748532112270,147.3,170.69,170.68,20.98995552]
[1748532112475,9.9,170.72,170.68,20.98995552]
[1748532112683,9.9,170.72,170.7,20.98995552]
[1748532113887,9.9,170.72,170.66,5.85949031]
[1748532113888,9.9,170.72,170.71,20.98995552]
[1748532114192,184.34,170.75,170.71,20.98995552]
[1748532114373,184.34,170.75,170.72,20.98995552]
[1748532114864,147.3,170.75,170.66,6.2357]
[1748532115064,5.8565502,170.75,170.63,18.64964886]
[1748532115292,5.8565502,170.75,170.69,20.98995552]
[1748532115458,20.98995552,170.74,170.69,20.98995552]
[1748532115878,20.98995552,170.74,170.64,20.98995552]
[1748532115879,20.98995552,170.74,170.7,20.98995552]
[1748532116470,26.84688272,170.74,170.7,20.98995552]
[1748532116672,26.84688272,170.74,170.69,20.98995552]
[1748532116987,20.98995552,170.73,170.69,20.98995552]
[1748532117369,26.84688272,170.74,170.69,20.98995552]
[1748532117786,20.98995552,170.73,170.69,20.98995552]
[1748532118779,20.98995552,170.74,170.69,20.98995552]
[1748532119785,26.84719322,170.73,170.69,20.98995552]
[1748532120000,26.84719322,170.73,170.68,20.98995552]
[1748532120500,20.98995552,170.72,170.62,6.2989]
[1748532120713,5.8572377,170.73,170.62,6.2989]
[1748532120714,20.98995552,170.7,170.65,20.98995552]
[1748532121009,37.04,170.71,170.63,20.98995552]
[1748532121010,20.98995552,170.68,170.63,20.98995552]
[1748532121174,20.98995552,170.68,170.61,1.6407]
[1748532121493,20.98995552,170.68,170.63,20.98995552]
[1748532121869,26.84898519,170.68,170.63,20.98995552]
[1748532122075,20.98995552,170.66,170.61,20.98995552]
[1748532122478,20.98995552,170.64,170.6,20.98995552]
[1748532122680,20.98995552,170.64,170.59,20.98995552]
[1748532123100,37.06,170.66,170.6,20.98995552]
[1748532123403,20.98995552,170.65,170.6,20.98995552]
[1748532123983,26.85014448,170.65,170.6,20.98995552]
[1748532125104,20.98995552,170.64,170.59,20.98995552]
[1748532125488,20.98995552,170.64,170.57,1.6087]
[1748532125688,20.98995552,170.63,170.57,1.6087]
[1748532125904,20.98995552,170.61,170.57,20.98995552]
[1748532126483,20.98995552,170.62,170.57,20.98995552]
[1748532127603,20.98995552,170.61,170.57,20.98995552]
[1748532127807,20.98995552,170.61,170.56,20.98995552]
[1748532128000,20.98995552,170.61,170.57,20.98995552]
[1748532128508,20.98995552,170.61,170.53,1.5423]
[1748532128717,20.98995552,170.58,170.53,20.98995552]
[1748532128887,20.98995552,170.57,170.53,20.98995552]
[1748532129082,20.98995552,170.58,170.53,20.98995552]
[1748532129280,30.96995552,170.59,170.54,20.98995552]
[1748532129679,9.98,170.59,170.58,20.98995552]
[1748532129884,9.98,170.64,170.58,20.98995552]
[1748532130079,9.98,170.64,170.61,20.98995552]
[1748532130499,9.98,170.64,170.6,20.98995552]
[1748532131606,9.98,170.64,170.61,20.98995552]
[1748532131810,9.98,170.64,170.6,20.98995552]
[1748532132513,9.98,170.64,170.61,20.98995552]
[1748532133419,9.98,170.64,170.6,20.98995552]
[1748532133996,20.98995552,170.63,170.58,20.98995552]
[1748532134309,15.84039339,170.64,170.54,32.3959]
[1748532134310,20.98995552,170.62,170.54,6.3959]
[1748532134512,20.98995552,170.6,170.55,20.98995552]
[1748532135089,37.06,170.61,170.55,20.98995552]
[1748532135309,20.98995552,170.59,170.52,1.6058]
[1748532135484,20.98995552,170.58,170.52,1.6058]
[1748532135689,20.98995552,170.58,170.53,20.98995552]
[1748532136514,20.98995552,170.6,170.55,20.98995552]
[1748532137714,20.98995552,170.59,170.54,20.98995552]
[1748532137895,20.98995552,170.58,170.54,20.98995552]
[1748532138220,20.98995552,170.59,170.54,20.98995552]
[1748532138815,20.44858023,170.59,170.54,20.98995552]
[1748532139899,20.98995552,170.59,170.54,20.98995552]
[1748532142002,20.98995552,170.58,170.54,20.98995552]
[1748532142921,20.98995552,170.59,170.54,20.98995552]
[1748532144920,20.98995552,170.6,170.52,7.46993814]
[1748532145127,20.98995552,170.6,170.55,20.98995552]
[1748532145925,20.98995552,170.59,170.55,20.98995552]
[1748532146128,20.98995552,170.59,170.54,20.98995552]
[1748532147223,183.28,170.61,170.58,20.98995552]
[1748532147447,183.28,170.61,170.6,20.98995552]
[1748532147448,147.3,170.61,170.6,20.98995552]
[1748532147735,9.98,170.66,170.6,20.98995552]
[1748532148036,9.98,170.66,170.63,20.98995552]
[1748532148208,9.98,170.66,170.62,20.98995552]
[1748532151120,36.82958972,170.66,170.59,1.5147]
[1748532151322,20.98995552,170.65,170.6,20.98995552]
[1748532151832,20.98995552,170.65,170.61,20.98995552]
[1748532152330,30.96995552,170.66,170.61,20.98995552]
[1748532152721,67.98995552,170.66,170.61,20.98995552]
[1748532155920,47.0,170.66,170.62,20.98995552]
[1748532156316,73.84963161,170.66,170.57,6.383]
[1748532156525,20.98995552,170.64,170.59,20.98995552]
[1748532156732,26.0,170.65,170.59,20.98995552]
[1748532156938,46.98995552,170.65,170.61,20.98995552]
[1748532158043,26.0,170.65,170.61,20.98995552]
[1748532158242,46.98995552,170.65,170.61,20.98995552]
[1748532159736,26.0,170.65,170.61,20.98995552]
[1748532160537,86.63960438,170.66,170.64,20.98995552]
[1748532160538,9.98,170.66,170.64,20.98995552]
[1748532161843,9.98,170.66,170.65,20.98995552]
[1748532162028,9.94,170.71,170.65,20.98995552]
[1748532162224,72.94,170.71,170.68,20.98995552]
[1748532162429,35.94,170.71,170.68,20.98995552]
[1748532163231,35.94,170.71,170.67,20.98995552]
[1748532163426,72.94,170.71,170.67,20.98995552]
[1748532164635,72.94,170.71,170.62,5.86073561]
[1748532164825,72.94,170.71,170.67,20.98995552]
[1748532165147,72.92,170.71,170.67,20.98995552]
[1748532165853,78.77792752,170.71,170.67,20.98995552]
[1748532166022,99.76788304,170.71,170.66,20.98995552]
[1748532166738,99.76788304,170.71,170.61,7.42033825]
[1748532166739,93.90995552,170.71,170.67,20.98995552]
[1748532167226,99.76788813,170.71,170.67,20.98995552]
[1748532167740,99.76788813,170.71,170.66,20.98995552]
[1748532168244,36.94,170.7,170.66,20.98995552]
[1748532168852,63.7881888,170.7,170.65,20.98995552]
[1748532169351,57.92995552,170.7,170.66,20.98995552]
[1748532169553,36.94,170.7,170.66,20.98995552]
[1748532171554,63.78818655,170.7,170.65,20.98995552]
[1748532171730,63.78818655,170.7,170.61,1.5591]
[1748532171731,20.98995552,170.69,170.61,1.5591]
[1748532171930,20.98995552,170.69,170.64,20.98995552]
[1748532172133,20.98995552,170.68,170.61,1.5591]
[1748532172359,20.98995552,170.68,170.64,20.98995552]
[1748532174954,42.79836336,170.7,170.65,20.98995552]
[1748532175125,20.98995552,170.69,170.65,20.98995552]
[1748532175623,26.84865349,170.69,170.65,20.98995552]
[1748532176663,5.85869797,170.69,170.65,20.98995552]
[1748532176827,42.79833123,170.7,170.65,20.98995552]
[1748532177031,63.78828675,170.7,170.65,20.98995552]
[1748532177968,20.98995552,170.69,170.65,20.98995552]
[1748532178551,20.98995552,170.69,170.61,1.5591]
[1748532178850,20.98995552,170.69,170.64,20.98995552]
[1748532178851,26.84855459,170.69,170.64,20.98995552]
[1748532179268,26.84855459,170.69,170.61,1.5591]
[1748532179269,18.64964886,170.68,170.61,1.5591]
[1748532179450,20.98995552,170.66,170.62,20.98995552]
[1748532179650,20.98995552,170.67,170.62,20.98995552]
[1748532180270,20.98995552,170.66,170.61,20.98995552]
[1748532180446,36.92,170.65,170.61,20.98995552]
[1748532180773,36.92,170.65,170.62,20.98995552]
[1748532180943,20.98995552,170.67,170.63,20.98995552]
[1748532181149,36.92,170.66,170.63,20.98995552]
[1748532183272,36.92,170.66,170.58,5.86235197]
[1748532183466,36.92,170.66,170.64,20.98995552]
[1748532184063,36.92,170.66,170.58,5.86235197]
[1748532184254,36.92,170.66,170.63,20.98995552]
[1748532184756,36.92,170.66,170.64,20.98995552]
[1748532185881,36.92,170.66,170.65,20.98995552]
[1748532186081,36.92,170.66,170.64,20.98995552]
[1748532186845,36.92,170.68,170.64,20.98995552]
[1748532187472,57.90995552,170.68,170.64,20.98995552]
[1748532187676,63.76888443,170.68,170.64,20.98995552]
[1748532187878,63.76888443,170.68,170.63,20.98995552]
[1748532188177,20.98995552,170.67,170.62,20.98995552]
[1748532188487,9.9,170.67,170.62,20.98995552]
[1748532188696,9.9,170.67,170.57,7.52335061]
[1748532188697,9.9,170.67,170.63,20.98995552]
[1748532188978,9.9,170.67,170.64,20.98995552]
[1748532189676,9.9,170.67,170.66,20.98995552]
[1748532189973,9.9,170.67,170.65,20.98995552]
[1748532190158,9.9,170.67,170.64,20.98995552]
[1748532190774,9.9,170.67,170.59,26.0]
[1748532190950,9.9,170.67,170.63,20.98995552]
[1748532191377,36.74923716,170.67,170.62,20.98995552]
[1748532191885,41.75928164,170.67,170.57,1.6609]
[1748532192064,20.98995552,170.65,170.6,20.98995552]
[1748532192249,20.98995552,170.63,170.58,20.98995552]
[1748532192759,62.94,170.64,170.6,20.98995552]
[1748532193063,26.0,170.64,170.61,20.98995552]
[1748532193265,36.96,170.64,170.61,20.98995552]
[1748532194994,57.94995552,170.64,170.57,1.6609]
[1748532195164,63.81037509,170.64,170.59,20.98995552]
[1748532195488,20.98995552,170.63,170.58,20.98995552]
[1748532196063,20.98995552,170.62,170.58,20.98995552]
[1748532196776,26.85062156,170.63,170.58,20.98995552]
[1748532197654,20.98995552,170.63,170.58,20.98995552]
[1748532197856,20.98995552,170.63,170.59,20.98995552]
[1748532200976,42.82034742,170.64,170.59,20.98995552]
[1748532200977,57.94995552,170.64,170.59,20.98995552]
[1748532201420,57.94995552,170.64,170.6,20.98995552]
[1748532201911,20.98995552,170.63,170.59,20.98995552]
[1748532203575,20.98995552,170.63,170.57,1.6609]
[1748532203779,20.98995552,170.63,170.58,20.98995552]
[1748532204621,20.98995552,170.63,170.59,20.98995552]
[1748532204783,26.85059238,170.63,170.59,20.98995552]
[1748532204995,26.85059238,170.63,170.58,20.98995552]
[1748532205809,20.98995552,170.61,170.56,20.98995552]
[1748532206187,20.98995552,170.62,170.58,20.98995552]
[1748532206780,55.60964886,170.64,170.53,7.4490583]
[1748532206781,36.96,170.64,170.59,20.98995552]
[1748532206999,63.81039335,170.64,170.6,20.98995552]
[1748532207202,63.81039335,170.64,170.59,20.98995552]
[1748532207616,57.94995552,170.64,170.59,20.98995552]
[1748532209229,20.98995552,170.63,170.54,5.86361266]
[1748532209386,20.98995552,170.63,170.58,20.98995552]
[1748532210084,20.98995552,170.6,170.53,1.585]
[1748532210293,20.98995552,170.59,170.55,20.98995552]
[1748532210717,57.90995552,170.59,170.55,20.98995552]
[1748532211008,57.90995552,170.59,170.54,20.98995552]
[1748532211187,20.98995552,170.58,170.54,20.98995552]
[1748532211414,20.98995552,170.58,170.53,1.585]
[1748532211612,20.98995552,170.56,170.52,20.98995552]
[1748532212202,20.98995552,170.56,170.49,17.36193675]
[1748532212203,20.98995552,170.55,170.5,20.98995552]
[1748532212450,20.98995552,170.56,170.51,20.98995552]
[1748532212750,20.98995552,170.57,170.53,20.98995552]
[1748532213111,205.20995552,170.59,170.54,20.98995552]
[1748532213518,205.20995552,170.59,170.49,7.46189472]
[1748532213519,205.20995552,170.59,170.5,5.86494708]
[1748532213713,57.92995552,170.58,170.53,20.98995552]
[1748532216010,57.92995552,170.58,170.49,1.5966]
[1748532216011,20.98995552,170.56,170.49,1.5966]
[1748532216232,20.98995552,170.56,170.51,20.98995552]
[1748532217629,36.94,170.58,170.52,20.98995552]
[1748532217630,20.98995552,170.57,170.52,20.98995552]
[1748532218011,20.98995552,170.56,170.52,20.98995552]
[1748532219320,20.98995552,170.56,170.49,1.5966]
[1748532219519,20.98995552,170.56,170.51,20.98995552]
[1748532220519,36.94,170.58,170.53,20.98995552]
[1748532220715,205.22995552,170.59,170.55,20.98995552]
[1748532220912,205.22995552,170.59,170.54,20.98995552]
[1748532221121,184.24,170.59,170.55,20.98995552]
[1748532221443,205.22995552,170.59,170.54,20.98995552]
[1748532222317,20.98995552,170.59,170.54,20.98995552]
[1748532222514,36.94,170.58,170.55,20.98995552]
[1748532224561,62.94,170.6,170.56,20.98995552]
[1748532225018,62.94,170.6,170.57,20.98995552]
[1748532225220,9.9,170.61,170.57,20.98995552]
[1748532225749,9.9,170.61,170.53,11.93298551]
[1748532226041,30.88995552,170.61,170.56,20.98995552]
[1748532226239,20.98995552,170.6,170.55,20.98995552]
[1748532228253,20.98995552,170.59,170.54,20.98995552]
[1748532228560,18.64964886,170.59,170.49,33.46199445]
[1748532228769,20.98995552,170.59,170.54,20.98995552]
[1748532229528,20.98995552,170.58,170.54,20.98995552]
[1748532229732,76.57960438,170.57,170.49,1.5966]
[1748532230079,20.98995552,170.54,170.49,20.98995552]
[1748532230729,20.98995552,170.54,170.45,33.52910546]
[1748532230927,30.90995552,170.55,170.5,20.98995552]
[1748532231548,36.77346597,170.55,170.45,33.52910546]
[1748532231767,20.98995552,170.54,170.49,20.98995552]
[1748532233737,9.92,170.55,170.5,20.98995552]
[1748532234163,30.90995552,170.55,170.47,5.86613193]
[1748532234355,30.90995552,170.55,170.5,20.98995552]
[1748532234536,9.92,170.55,170.5,20.98995552]
[1748532234735,9.92,170.55,170.52,20.98995552]
[1748532234967,9.92,170.55,170.53,20.98995552]
[1748532235560,9.92,170.55,170.52,20.98995552]
[1748532236472,30.90995552,170.55,170.46,5.86640459]
[1748532236653,30.90995552,170.55,170.5,20.98995552]
[1748532238271,20.98995552,170.54,170.49,20.98995552]
[1748532238567,20.98995552,170.53,170.49,20.98995552]
[1748532238937,41.78350834,170.55,170.49,20.98995552]
[1748532239136,20.98995552,170.54,170.49,20.98995552]
[1748532239585,20.98995552,170.54,170.5,20.98995552]
[1748532240081,56.90995552,170.55,170.5,20.98995552]
[1748532240452,20.98995552,170.54,170.49,20.98995552]
[1748532240788,20.98995552,170.53,170.48,20.98995552]
[1748532240942,41.78343084,170.55,170.49,20.98995552]
[1748532241153,20.98995552,170.54,170.49,20.98995552]
[1748532241383,41.78343084,170.55,170.49,20.98995552]
[1748532241581,41.78343084,170.55,170.45,7.52904983]
[1748532241582,9.92,170.55,170.52,20.98995552]
[1748532241788,46.96,170.55,170.52,20.98995552]
[1748532242627,46.96,170.55,170.51,20.98995552]
[1748532242909,30.90995552,170.55,170.5,20.98995552]
[1748532243083,37.04,170.54,170.51,20.98995552]
[1748532244987,9.92,170.55,170.52,20.98995552]
[1748532246688,9.92,170.55,170.53,20.98995552]
[1748532246892,9.92,170.55,170.54,20.98995552]
[1748532247715,9.92,170.6,170.54,20.98995552]
[1748532247920,9.92,170.6,170.51,1.6621]
[1748532247921,9.92,170.6,170.58,20.98995552]
[1748532249414,9.92,170.6,170.59,20.98995552]
[1748532250037,9.92,170.6,170.58,20.98995552]
[1748532261332,9.92,170.6,170.53,5.86403005]
[1748532261552,9.92,170.6,170.58,20.98995552]
[1748532261949,9.92,170.6,170.57,20.98995552]
[1748532262946,9.92,170.6,170.51,1.6621]
[1748532263147,20.98995552,170.58,170.54,20.98995552]
[1748532263459,20.98995552,170.57,170.53,20.98995552]
[1748532263661,20.98995552,170.57,170.49,6.467]
[1748532263662,20.98995552,170.56,170.49,6.467]
[1748532263845,36.94,170.57,170.47,27.6097]
[1748532263846,36.94,170.57,170.51,20.98995552]
[1748532264056,20.98995552,170.56,170.51,20.98995552]
[1748532265052,26.8530985,170.56,170.51,20.98995552]
[1748532265283,20.98995552,170.56,170.51,20.98995552]
[1748532265480,26.85305689,170.56,170.51,20.98995552]
[1748532265686,26.85305689,170.56,170.47,27.6097]
[1748532266186,26.85305689,170.56,170.51,20.98995552]
[1748532268064,20.98995552,170.55,170.47,1.6097]
[1748532268377,20.98995552,170.52,170.47,22.59965552]
[1748532268586,57.92995552,170.52,170.47,20.98995552]
[1748532270271,36.94,170.52,170.48,20.98995552]
[1748532271491,9.94,170.54,170.51,20.98995552]
[1748532271787,26.0,170.57,170.52,20.98995552]
[1748532271987,83.92995552,170.57,170.52,20.98995552]
[1748532272288,20.98995552,170.56,170.48,1.5833]
[1748532272464,20.98995552,170.56,170.51,20.98995552]
[1748532273486,20.98995552,170.56,170.52,20.98995552]
[1748532273665,83.92995552,170.57,170.52,20.98995552]
[1748532273973,20.98995552,170.56,170.52,20.98995552]
[1748532274385,20.98995552,170.56,170.48,1.5833]
[1748532274577,20.98995552,170.56,170.52,20.98995552]
[1748532275980,20.98995552,170.56,170.48,7.44896628]
[1748532276186,20.98995552,170.56,170.52,20.98995552]
[1748532276379,57.92995552,170.56,170.52,20.98995552]
[1748532280494,63.79301619,170.56,170.52,20.98995552]
[1748532280900,42.80306067,170.56,170.52,20.98995552]
[1748532281199,63.79301619,170.56,170.52,20.98995552]
[1748532281798,42.80306067,170.56,170.52,20.98995552]
[1748532282105,36.94,170.56,170.52,20.98995552]
[1748532284176,63.79306841,170.56,170.51,20.98995552]
[1748532284479,20.98995552,170.54,170.49,20.98995552]
[1748532284682,20.98995552,170.55,170.5,20.98995552]
[1748532285179,20.98995552,170.55,170.51,20.98995552]
[1748532285381,36.94,170.56,170.52,20.98995552]
[1748532285896,57.92995552,170.56,170.52,20.98995552]
[1748532286072,57.92995552,170.56,170.51,20.98995552]
[1748532286277,63.79303222,170.56,170.51,20.98995552]
[1748532286472,20.98995552,170.55,170.5,20.98995552]
[1748532286693,20.98995552,170.54,170.48,1.5833]
[1748532286904,20.98995552,170.54,170.49,20.98995552]
[1748532287084,42.8030767,170.56,170.5,20.98995552]
[1748532287281,20.98995552,170.54,170.5,20.98995552]
[1748532287900,20.98995552,170.54,170.48,1.5833]
[1748532288105,20.98995552,170.54,170.5,20.98995552]
[1748532288288,20.98995552,170.55,170.5,20.98995552]
[1748532288478,57.92995552,170.56,170.51,20.98995552]
[1748532288898,20.98995552,170.55,170.5,20.98995552]
[1748532289410,20.98995552,170.54,170.5,20.98995552]
[1748532289903,20.98995552,170.54,170.48,1.5833]
[1748532290110,20.98995552,170.53,170.48,20.98995552]
[1748532290610,20.98995552,170.53,170.49,20.98995552]
[1748532290788,20.98995552,170.54,170.49,20.98995552]
[1748532291109,20.98995552,170.54,170.5,20.98995552]
[1748532292181,30.90995552,170.56,170.52,20.98995552]
[1748532292400,36.94,170.54,170.52,20.98995552]
[1748532292906,36.94,170.54,170.51,20.98995552]
[1748532295316,20.98995552,170.55,170.51,20.98995552]
[1748532295520,57.92995552,170.55,170.51,20.98995552]
[1748532295824,57.92995552,170.55,170.5,20.98995552]
[1748532296297,36.94,170.55,170.5,20.98995552]
[1748532296490,57.92995552,170.55,170.5,20.98995552]
[1748532297897,36.94,170.55,170.5,20.98995552]
[1748532298222,57.92995552,170.55,170.5,20.98995552]
[1748532298819,57.92995552,170.55,170.47,5.86601953]
[1748532299030,57.92995552,170.55,170.5,20.98995552]
[1748532299597,63.79337122,170.55,170.5,20.98995552]
[1748532299820,20.98995552,170.54,170.49,20.98995552]
[1748532300126,20.98995552,170.53,170.48,20.98995552]
[1748532300809,42.8034157,170.55,170.48,20.98995552]
[1748532300997,20.98995552,170.54,170.49,20.98995552]
[1748532301394,20.98995552,170.53,170.49,20.98995552]
[1748532301594,20.98995552,170.52,170.47,20.98995552]
[1748532301795,20.98995552,170.53,170.48,20.98995552]
[1748532302723,20.98995552,170.52,170.47,20.98995552]
[1748532304612,20.98995552,170.53,170.48,20.98995552]
[1748532304808,20.98995552,170.5,170.45,20.98995552]
[1748532305014,20.98995552,170.5,170.43,1.6473]
[1748532305212,57.92995552,170.5,170.45,20.98995552]
[1748532307829,36.94,170.5,170.46,20.98995552]
[1748532308025,36.94,170.5,170.47,20.98995552]
[1748532308397,20.98995552,170.52,170.48,20.98995552]
[1748532308608,36.94,170.51,170.48,20.98995552]
[1748532309030,57.92995552,170.51,170.44,5.86714779]
[1748532309236,57.92995552,170.51,170.46,20.98995552]
[1748532309533,20.98995552,170.5,170.46,20.98995552]
[1748532311024,20.98995552,170.5,170.43,1.6473]
[1748532311215,147.3,170.54,170.44,26.0]
[1748532311418,36.94,170.53,170.52,20.98995552]
[1748532311615,30.88995552,170.56,170.52,20.98995552]
[1748532311935,30.88995552,170.56,170.46,20.98995552]
[1748532311936,36.94,170.55,170.51,20.98995552]
[1748532314734,30.88995552,170.56,170.51,20.98995552]
[1748532315034,36.94,170.55,170.51,20.98995552]
[1748532315236,36.94,170.55,170.52,20.98995552]
[1748532316240,36.94,170.55,170.51,20.98995552]
[1748532317341,20.98995552,170.53,170.45,5.86676938]
[1748532317543,20.98995552,170.53,170.48,20.98995552]
[1748532317753,20.98995552,170.54,170.49,20.98995552]
[1748532318524,42.80338818,170.55,170.45,5.86676938]
[1748532318722,20.98995552,170.53,170.48,20.98995552]
[1748532319836,20.98995552,170.54,170.49,20.98995552]
[1748532320651,20.98995552,170.51,170.46,20.98995552]
[1748532321023,20.98995552,170.52,170.47,20.98995552]
[1748532321221,20.98995552,170.54,170.49,20.98995552]
[1748532321418,36.94,170.53,170.49,20.98995552]
[1748532321856,36.94,170.53,170.5,20.98995552]
[1748532322037,30.88995552,170.56,170.51,20.98995552]
[1748532322238,36.94,170.55,170.51,20.98995552]
[1748532324674,36.94,170.55,170.5,20.98995552]
[1748532325675,36.94,170.55,170.51,20.98995552]
[1748532326085,36.94,170.55,170.52,20.98995552]
[1748532326253,46.84,170.56,170.53,20.98995552]
[1748532326761,46.84,170.56,170.54,20.98995552]
[1748532327460,9.9,170.56,170.55,20.98995552]
[1748532327791,36.94,170.57,170.55,20.98995552]
[1748532328080,36.94,170.57,170.56,20.98995552]
[1748532328263,56.88995552,170.61,170.56,20.98995552]
[1748532328443,36.94,170.59,170.56,20.98995552]
[1748532329755,56.88995552,170.61,170.56,20.98995552]
[1748532330056,36.94,170.6,170.56,20.98995552]
[1748532330366,36.94,170.59,170.56,20.98995552]
[1748532330976,56.88995552,170.61,170.56,20.98995552]
[1748532331158,36.94,170.6,170.56,20.98995552]
[1748532333476,31.86134772,170.61,170.56,20.98995552]
[1748532333679,20.98995552,170.57,170.47,1.5162]
[1748532333863,38.4228,170.6,170.5,20.98995552]
[1748532333864,20.98995552,170.55,170.5,20.98995552]
[1748532334187,57.90995552,170.55,170.5,20.98995552]
[1748532334778,63.77333989,170.55,170.5,20.98995552]
[1748532335178,57.90995552,170.55,170.5,20.98995552]
[1748532336071,63.77341066,170.55,170.5,20.98995552]
[1748532336473,63.77341066,170.55,170.51,20.98995552]
[1748532336474,36.92,170.55,170.51,20.98995552]
[1748532337466,36.92,170.55,170.5,20.98995552]
[1748532337666,57.90995552,170.55,170.5,20.98995552]
[1748532339378,20.98995552,170.54,170.46,26.0]
[1748532339580,36.92,170.55,170.45,26.0]
[1748532339581,20.98995552,170.53,170.48,20.98995552]
[1748532342283,20.98995552,170.53,170.45,5.8667178]
[1748532342479,20.98995552,170.53,170.48,20.98995552]